Cogmind - Beta 15 @@@ ROGUE MODE // 2025.10.02 @ 17:12:37 // AFD2019/Pay2Buy Player: PersmaticCoreSerial_K4E2 Result: Self-destructed Performance ------------- Evolutions (1) 500 Regions Visited (2) 400 Robots Destroyed (26) 130 Value Destroyed (512) 512 Prototype IDs (5) 100 Alien Tech Used (0) 0 Bonus (0) 0 TOTAL SCORE: 1642 Bonus ------- None Cogmind --------- Core Integrity 203/400 Matter 300/300 Energy 100/100 System Corruption 0% Temperature Cool (0) Movement Core (100) Ox1 Location -9/Materials Parts ------- > --- POWER (1) -------- (None) > --- PROPULSION (3) --- (None) > --- UTILITY (3) ------ Melee Analysis Suite Core Shielding Improved Propulsion Shielding > --- WEAPON (2) ------- Flail > --- INVENTORY (10) --- (None) Peak State ------------ > --- POWER ------------ (None) > --- PROPULSION ------- Aerolev Unit > --- UTILITY ---------- Melee Analysis Suite Core Shielding Hardened Light Armor Plating > --- WEAPON ----------- Flail > --- INVENTORY -------- (None) [Rating: 12] Favorites ----------- Power None Propulsion Aerolev Unit Hover Unit Aerolev Unit Utility Shield Generator Device Shield Generator Processor Melee Analysis Suite Protection Core Shielding Weapon Light Cannon Ballistic Cannon Light Cannon Impact Weapon Flail Build | -11 -10 -9 ------- Run | Yrd Mat Mat Slots Evolved 2 | . . 2 Power . | . . . Propulsion 1 | . . 1 Utility 1 | . . 1 Weapon . | . . . Parts Attached 1 | . 1 . Power . | . . . Engine . | . . . Core . | . . . Reactor . | . . . Propulsion . | . . . Treads . | . . . Leg . | . . . Wheel . | . . . Hover . | . . . Flight . | . . . Utility . | . . . Device . | . . . Storage . | . . . Processor . | . . . Hackware . | . . . Protection . | . . . Artifact . | . . . Weapon 1 | . 1 . Energy Gun . | . . . Energy Cannon . | . . . Ballistic Gun . | . . . Ballistic Cannon 1 | . 1 . Launcher . | . . . Special Weapon . | . . . Impact Weapon . | . . . Slashing Weapon . | . . . Piercing Weapon . | . . . Special Melee Weapon . | . . . Unidentified Prototypes . | . . . Parts Lost 5 | . 2 3 Power . | . . . Propulsion 2 | . . 2 Utility 2 | . 1 1 Weapon 1 | . 1 . Highest Loss Streak 2 | . 1 2 To Critical Strikes . | . . . Average Backups . | . . . Power . | . . . Propulsion . | . . . Utility . | . . . Weapon . | . . . Tool/Special . | . . . Unused Backups . | . . . Power . | . . . Propulsion . | . . . Utility . | . . . Weapon . | . . . Tool/Special . | . . . Average Slot Usage (%) 35 | . 25 53 Hover 3 | . . 9 Device 7 | . 11 . Processor 4 | . . 11 Protection 8 | . . 21 Ballistic Cannon 7 | . 12 . Impact Weapon 4 | . 1 11 Peak Build Rating 12 | 3 3 12 Average Rating 5 | 3 2 11 On Entrance 1 | . 3 2 Naked Turns 2 | . 2 . Heaviest Build 8 | 5 5 8 Greatest Support 8 | 3 3 8 Greatest Overweight (x) 1 | 1 1 1 Average Overweight (x) . | 1 . . Largest Inventory Capacity 10 | 10 10 10 Average Capacity 10 | 10 10 10 Most Carried 1 | . 1 . Average Carried . | . . . Final Capacity 10 | 10 10 10 Final Carried . | . . . Class Distribution -------------------- 100% | Mutant Dominant Class ---------------- Mutant | -10/Materials Mutant | -9/Materials Resources | -11 -10 -9 ----------- Run | Yrd Mat Mat Matter Collected 411 | 23 296 92 Remotely . | . . . Salvage Created 541 | 19 210 312 Parts . | . . . Haulers Intercepted 1 | . 1 . Recyclers Shooed . | . . . Parts Field Recycled . | . . . Retrieved Matter . | . . . Parts Self-Destructed . | . . . Prevented . | . . . Kills | -11 -10 -9 ------- Run | Yrd Mat Mat Combat Hostiles Destroyed 22 | . 7 15 Melee 9 | . 1 8 Cannons 6 | . 6 . Classes Destroyed 6 | 1 4 1 Tunneler 1 | 1 . . Hauler 1 | . 1 . Watcher 2 | . 2 . Swarmer 14 | . 2 12 Grunt 5 | . 5 . Sentry 3 | . . 3 Best Kill Streak 4 | 1 3 4 Combat Bots Only 5 | . 2 5 Max Kills in Single Turn 1 | 1 1 1 Gunslinging . | . . . Exploded . | . . . Melee 1 | . 1 1 Uniques/NPCs Destroyed . | . . . Combat | -11 -10 -9 -------- Run | Yrd Mat Mat Hostile Shots Fired 136 | . 46 90 Missed 41 | . 12 29 Hits 95 | . 34 61 Projectile 95 | . 34 61 Critical Strikes 4 | . 1 3 Actively Blocked 1 | . . 1 Damage Taken 987 | . 357 630 Core 399 | . 202 197 Absorbed by Shields 76 | . 76 . Redirected to Shielding 62 | . . 62 Core Remaining (%) 59 | 100 19 . Volleys Fired 54 | 2 52 . Largest 1 | 1 1 . Hottest 30 | 30 30 . Shots Fired 54 | 2 52 . Gun . | . . . Cannon 54 | 2 52 . Launcher . | . . . Special . | . . . Kinetic 54 | 2 52 . Thermal . | . . . Explosive . | . . . Electromagnetic . | . . . Robot Hit Streak 9 | 2 9 . Robot Miss Streak 5 | . 5 . Penetration Max . | . . . Secondary Targets . | . . . Shots Hit Robots 70 | 2 37 31 Core Hits 16 | 1 12 3 Critical Kills 1 | . . 1 Critical Parts Destroyed 4 | . . 4 Critical Strikes 6 | . . 6 Smash 6 | . . 6 Melee Attacks 64 | . 6 58 Impact 64 | . 6 58 Slashing . | . . . Piercing . | . . . Sneak Attacks . | . . . Combat Hostiles . | . . . Follow-up Attacks . | . . . Damage Inflicted 1694 | 35 668 991 Guns . | . . . Cannons 646 | 35 611 . Explosions . | . . . Melee 1048 | . 57 991 Ramming . | . . . Kinetic 646 | 35 611 . Thermal . | . . . Explosive . | . . . Electromagnetic . | . . . Impact 1048 | . 57 991 Slashing . | . . . Piercing . | . . . Highest Corruption . | . . . Average Corruption . | . . . Corruption Purged . | . . . Corruption Blocked . | . . . Overload Shots . | . . . Overflow Damage 316 | . 16 300 Projectiles 16 | . 16 . Explosions . | . . . Melee 300 | . . 300 Knockbacks 12 | 1 8 3 Impact 3 | . . 3 Kinetic 8 | 1 7 . Secondary 1 | . 1 . Self-Inflicted Damage . | . . . Shots . | . . . Rammed . | . . . Targets Rammed . | . . . Kicked . | . . . Crushed . | . . . Highest Temperature 5 | . 5 2 Average Temperature 3 | . 5 2 Received Heat Transfer 308 | . 173 135 Siege Activations . | . . . Martial Activations . | . . . Shielding Activations . | . . . Robots Disrupted . | . . . Combat Hostiles . | . . . Robots Corrupted 7 | . . 7 Combat Hostiles 7 | . . 7 Parts Fried . | . . . Impact Corruptions 17 | . . 17 Robots Melted . | . . . Combat Hostiles . | . . . Parts Melted . | . . . Heat Transferred . | . . . Parts Sabotaged . | . . . Parts Stolen . | . . . Parts Stripped . | . . . Power Chain Reactions . | . . . Alert | -11 -10 -9 ------- Run | Yrd Mat Mat Maximum Alert Level 1 | . . 1 Low Security (%) 84 | 100 100 56 Level 1 15 | . . 43 Level 2 . | . . . Level 3 . | . . . Level 4 . | . . . Level 5 . | . . . High Security . | . . . Max Security . | . . . Peak Influence 283 | 5 85 283 Initial 17 | . . 17 Average 80 | 2 30 170 Influence Increases 703 | 5 252 446 Destroy 0b10 Robot/C 440 | . 140 300 Destroy 0b10 Robot/NC 20 | 5 15 . Destroy Leader 96 | . 36 60 Successful Hack 25 | . 14 11 Select Force Hacks 30 | . . 30 Destroy Structure 2 | . 2 . Lose Combat Pursuer 90 | . 45 45 Influence Decreases 420 | 5 209 206 Entered New Map 26 | . . 26 Time Decay 340 | 5 185 150 Lost Part 50 | . 20 30 Purge Threat 4 | . 4 . Squads Dispatched 3 | . 1 2 Investigation 1 | . . 1 Extermination . | . . . Reinforcement 2 | . 1 1 Assault . | . . . Garrison . | . . . Intercept . | . . . Searches Triggered . | . . . Construction Impeded . | . . . Haulers Reinforced . | . . . Active Scanning Responses . | . . . Cargo Convoy Interrupts . | . . . Stealth | -11 -10 -9 --------- Run | Yrd Mat Mat Distress Signals 1 | . 1 . Communications Jammed . | . . . Distress Signals . | . . . Times Spotted 33 | . 14 19 Peak Tracking Total 5 | . 3 5 Tactical Retreats 4 | . 2 2 Traps | -11 -10 -9 ------- Run | Yrd Mat Mat Traps Triggered 2 | . 2 . Indirectly . | . . . Trap Hack Attempts . | . . . Triggered . | . . . Disarmed . | . . . Reprogrammed . | . . . Reused . | . . . Traps Extracted . | . . . Installed . | . . . Triggered . | . . . Machines | -11 -10 -9 ---------- Run | Yrd Mat Mat Machines Disabled . | . . . Max in Single Turn . | . . . Machines Repaired . | . . . Machines Dismantled . | . . . Machines Sabotaged . | . . . Overloaded Fab Kills . | . . . Hacking | -11 -10 -9 --------- Run | Yrd Mat Mat Machines Accessed 5 | . 2 3 Terminals 4 | . 2 2 Fabricators . | . . . Repair Stations . | . . . Recycling Units . | . . . Scanalyzers 1 | . . 1 Garrison Access . | . . . Total Hacks 14 | . 9 5 Successful 10 | . 6 4 Failed 4 | . 3 1 Catastrophic 1 | . . 1 Database Lockouts . | . . . Manual 11 | . 6 5 Terminals 13 | . 9 4 Fabricators . | . . . Repair Stations . | . . . Recycling Units . | . . . Scanalyzers 1 | . . 1 Garrison Access . | . . . Terminal Hacks 5 | . 4 1 Robot Analysis 1 | . 1 . Prototype ID Bank 2 | . 2 . Terminal Index 1 | . . 1 Unreport Threat 1 | . 1 . Fabricator Hacks . | . . . Repair Station Hacks . | . . . Recycling Unit Hacks . | . . . Scanalyzer . | . . . Garrison Access Hacks . | . . . Unauthorized Hacks 5 | . 2 3 Terminals 4 | . 2 2 Botnet 4 | . 2 2 Fabricators . | . . . Repair Stations . | . . . Recycling Units . | . . . Scanalyzers 1 | . . 1 Extract 1 | . . 1 Garrison Access . | . . . Data Cores Recovered . | . . . Used . | . . . Hacking Detections 4 | . 2 2 Full Trace Events . | . . . Feedback Events . | . . . Feedback Blocked . | . . . Robot Schematics Acquired . | . . . Robots Built . | . . . Authchips . | . . . Time . | . . . Total Robot Build Rating . | . . . Part Schematics Acquired 2 | . . 2 Parts Built . | . . . Authchips . | . . . Time . | . . . Total Part Build Rating . | . . . Parts Repaired . | . . . Time . | . . . Parts Recycled . | . . . Recycled Matter . | . . . Retrieved Matter . | . . . Retrieved Components . | . . . Parts Scanalyzed . | . . . Part Schematics Acquired . | . . . Parts Damaged . | . . . Bothacking | -11 -10 -9 ------------ Run | Yrd Mat Mat Used RIF Installer . | . . . Robots Hacked . | . . . Non-combat . | . . . Combat . | . . . Robot Hacks Applied . | . . . Relay Couplers Released . | . . . Fabnet Peak Effective % . | . . . Robots Rewired . | . . . Allies Hacked . | . . . Hacks Repelled . | . . . Allies | -11 -10 -9 -------- Run | Yrd Mat Mat Total Allies . | . . . Largest Group . | . . . Highest-Rated Group . | . . . Highest-Rated Ally . | . . . Total Orders . | . . . Ally Attacks . | . . . Total Damage . | . . . Kills . | . . . Allies Corrupted . | . . . Allies Melted . | . . . Intel | -11 -10 -9 ------- Run | Yrd Mat Mat Active Infowar (turns) . | . . . Robot Analysis Total 1 | . 1 . Derelict Logs Recovered . | . . . Drone Launches . | . . . Drone Recoveries . | . . . Exploration | -11 -10 -9 ------------- Run | Yrd Mat Mat Turns Passed 880 | 21 543 316 Spaces Moved 767 | 18 466 283 Core 492 | 18 466 8 Treads . | . . . Legs . | . . . Wheels . | . . . Hover 275 | . . 275 Flight . | . . . Fastest Speed 50 | 100 50 50 Average Speed 74 | 100 86 53 Slowest Speed 100 | 100 100 100 Overloaded Moves . | . . . Propulsion Burnouts . | . . . Robots Hopped . | . . . Potential Cave-ins . | . . . Cave-ins Triggered . | . . . Exploration Rate (%) 32 | 3 69 26 Regions Visited 2 Branch Regions . Pre-discovered Areas . | . . . Known Exits Taken . | . . . Unknown Exits Taken 2 | 1 1 . Scrap Searched . | . . . Spaces Dug 3 | . 3 . Terrain Destroyed 3 | . 3 . Melee 3 | . 3 . Projectile . | . . . AOE . | . . . Terrain Rammed . | . . . Walls Destroyed . | . . . Machines Disabled . | . . . Actions | -11 -10 -9 --------- Run | Yrd Mat Mat Total 922 | 19 543 360 Wait 37 | . 18 19 Move 765 | 17 465 283 Hop . | . . . Pick Up 1 | . 1 . Fast Attach . | . . . Attach 1 | . 1 . Detach . | . . . Swap . | . . . Drop . | . . . Fire 54 | 2 52 . Melee 64 | . 6 58 Ram . | . . . Kick . | . . . Crush . | . . . Escape Stasis . | . . . Rewire . | . . . Trap . | . . . Miscellaneous . | . . . Route ------- -11/Scrapyard -10/Materials (discovered 2 exits: *Mat / [*Min]) -9/Materials (discovered 1 exit: [*Sto]) History --------- Turn | Location | Event 4 | -11/Scrapyard | Discovered new exit (range 15) 22 | -11/Scrapyard | Entered Materials 216 | -10/Materials | Discovered new exit (range 7) 308 | -10/Materials | Build established: Mutant 352 | -10/Materials | Discovered new exit (range 5) 489 | -10/Materials | Core integrity fell below 50% 526 | -10/Materials | Core integrity fell below 20% 565 | -10/Materials | Entered another Materials area 565 | -9/Materials | Evolved 2 slots: Propulsion x1, Utility x1 596 | -9/Materials | Discovered new exit (range 2) 881 | -9/Materials | Self-destructed Last Messages --------------- effect. 00803_ S-10 Pest knocked back. 00828_ Connecting with Terminal... >>Trojan(Botnet) Trojan loaded successfully. Testing... Terminal linked with 1 system. Awaiting botnet instructions. 00839_ Hrd. Light Armor Plating destroyed. 00839_ Critical hit (Burn: +37). [Purchased: Imp. Propulsion Shielding] 00851_ Airjet destroyed. 00866_ Y-45 Defender destroyed. 00878_ Y-45 Defender suffers critical hit (Smash). 00878_ Destroyed Beam Rifle. 00878_ Y-45 Defender system corrupted by crushing effect. 00879_ Y-45 Defender system terminally corrupted. Map ----- +----------------------------------------------------+ | ????????????????????????????????????????????? | | ????????????????????????????????????????????? | | ????????????????????????????????????????????? | | ????????????????????????????????????????????? | | ????????????????????????????????????????????? | | ????????????????????????????????????????????? | | ????????????????????????????????????????????? | | ????????????????????????????????????????????? | | ????????????????????????????????????????????? | | ???????????????????????????#????????????????? | | ??????????????????????????? ????????????????? | | ??????????????????????????? ????????????????? | | ??????????????????????????? ????????????????? | | ??????????????????????????? ????????????????? | | ??????????????????????????? ????????????????? | | ???????????????????????????+????????????????? | | ??????????????????????????# #???????????????? | | ??????????????????????????# #???????????????? | | ??????????????????????????# #???????????????? | | ??????????????????????????# #???????????????? | | ??????????????????????????# #?????#?????????? | | ??????????????????????????# #?### ##????????? | | ??????????????????????????# # #????????? | | ?????????????????########## # #????????? | | ?????????????????# """ %+ + #????????? | | ?????????????????# "T" @# # #????????? | | ?????????????????# # ########????????? | | ?????????????????# # #?????????????? | | ?????????????????# + #?????????????? | | ?????????????????# """# #?????????????? | | ?????????????????# """# #?????????????? | | ?????????????????# """# #?????????????? | | ?????????????????# # #?????????????? | | ?????????????????########## #?????????????? | | ?????????????????# ?# #?????????????? | | ?????????????????# # #?????????????? | | ?????????????????# # #?????????????? | | ?????????????????# """ + #?????????????? | | ?????????????????# """ # #?????????????? | | ?????????????????? """ # #?????????????? | | ?????????????????? """ ?# #?????????????? | | ??????????????????? """ ?# #### #????????? | | ??????????????????? ??# #????????? | | ??????????????????######??# ######????????? | | ??????????????????????????# #?????????????? | | ??????????????????????????# #?????????????? | | ??????????????????????????# #?????????????? | | ?????????????############## #####?????????? | | ????????? #?????????? | | ????????? #?????????? | +----------------------------------------------------+ Best States ------------- Heat Dissipation 28 Energy Generation 5 Energy Capacity 100 Matter Stores 300 Matter Capacity 300 Sight Range 16 Terrain Scan Density 10 Armor Coverage 150 Core Shielding 20 Propulsion Shielding 66 Evasion (%) 55 Melee Accuracy 5 Item Schematics ----------------- Arm. Wheel | -9/Materials | Extracted Targeting Computer | -9/Materials | Extracted Robot Schematics ------------------ None Fabricated ------------ Nothing Repaired ---------- Nothing Alien Tech Used ----------------- None Achievements -------------- None Challenges ------------ None Cogshop Purchases (9) ----------------------- Shield Generator (Loot Box) Lgt. Cannon (Loot Box) Flail (713) Melee Analysis Suite (757) Aerolev Unit (1050) Core Shielding (522) Hrd. Light Armor Plating (609) Airjet (1325) Imp. Propulsion Shielding (804) Game ------ Seed IonNeutronSink Manual? 0 Play Time 00:21:55 Cumulative 148.9 hours Start 2025.10.02 @ 16:26:23 End 2025.10.02 @ 17:12:37 Sessions 2 Manual Loads 0 Difficulty Rogue Special Mode AFD2019/Pay2Buy Game No. 45 Rogue 11 Adventurer 34 Explorer 0 Win Type - Total 2 Types 2/0/0/0/0/0/0/0/0/0 Lore% 28 Gallery% 47 Achievement% 49 Wizard Run 0 Options --------- Layout 2 ASCII 0 Keyboard 0 Movement Numpad Keybinds 0 Fullscreen 2 Font 48/Smallcaps Map View 50x44 Zoom Use 0% Tactical HUD 1 Map Filters NONE Filters NONE Steam 1 RUN: a1e0fde6-9aaa-40c2-b4e7-e9e6f3789749